[Event "Titled Tuesday Blitz October 26 2021"]
[White "Vlachos, Anatole"]
[Black "Ozen, Bahadir"]
[WhiteFideId "26093189"]
[BlackFideId "6337058"]
[WhiteElo "2350"]
[BlackElo "2503"]
[Result "1-0"]
[Round "06"]
[TimeControl "180+1"]
[Date "2021.10.26"]
[WhiteClock "0:00:18"]
[BlackClock "0:00:19"]

1. e4 {[%clk 0:03:00]}  c6 {[%clk 0:03:00]} 2. d4 {[%clk 0:02:59]}  d5 {[%clk 0:03:00]} 3. Nc3 {[%clk 0:03:00]}  dxe4 {[%clk 0:03:00]} 4. Nxe4 {[%clk 0:03:01]}  Bf5 {[%clk 0:03:01]} 5. Ng3 {[%clk 0:03:01]}  Bg6 {[%clk 0:03:01]} 6. h4 {[%clk 0:02:57]}  h6 {[%clk 0:03:01]} 7. h5 {[%clk 0:02:57]}  Bh7 {[%clk 0:03:02]} 8. Nf3 {[%clk 0:02:58]}  Nd7 {[%clk 0:03:02]} 9. Bd3 {[%clk 0:02:57]}  Bxd3 {[%clk 0:03:02]} 10. Qxd3 {[%clk 0:02:58]}  e6 {[%clk 0:03:03]} 11. Bd2 {[%clk 0:02:56]}  Ngf6 {[%clk 0:03:02]} 12. O-O-O {[%clk 0:02:56]}  Be7 {[%clk 0:03:02]} 13. Ne4 {[%clk 0:02:54]}  Nxe4 {[%clk 0:03:02]} 14. Qxe4 {[%clk 0:02:55]}  Nf6 {[%clk 0:03:03]} 15. Qe2 {[%clk 0:02:55]}  Qd5 {[%clk 0:03:03]} 16. c4 {[%clk 0:02:52]}  Qe4 {[%clk 0:02:56]} 17. Be3 {[%clk 0:02:48]}  O-O {[%clk 0:02:43]} 18. Ne5 {[%clk 0:02:47]}  Rac8 {[%clk 0:02:33]} 19. f3 {[%clk 0:02:45]}  Qh7 {[%clk 0:02:33]} 20. Qc2 {[%clk 0:02:24]}  Qxc2+ {[%clk 0:02:31]} 21. Kxc2 {[%clk 0:02:25]}  Rfd8 {[%clk 0:02:31]} 22. b3 {[%clk 0:02:22]}  Nd7 {[%clk 0:02:30]} 23. Nd3 {[%clk 0:02:16]}  Bf6 {[%clk 0:02:25]} 24. g4 {[%clk 0:02:15]}  a6 {[%clk 0:02:15]} 25. f4 {[%clk 0:02:12]}  Nf8 {[%clk 0:02:01]} 26. Nc5 {[%clk 0:02:07]}  Rc7 {[%clk 0:02:01]} 27. g5 {[%clk 0:02:01]}  Be7 {[%clk 0:02:02]} 28. Ne4 {[%clk 0:02:01]}  Rcd7 {[%clk 0:01:53]} 29. Rhg1 {[%clk 0:01:38]}  Kh8 {[%clk 0:01:53]} 30. Rd2 {[%clk 0:01:33]}  Nh7 {[%clk 0:01:49]} 31. Rdg2 {[%clk 0:01:32]}  f5 {[%clk 0:01:41]} 32. Nc5 {[%clk 0:01:14]}  Bxc5 {[%clk 0:01:33]} 33. dxc5 {[%clk 0:01:15]}  hxg5 {[%clk 0:01:24]} 34. fxg5 {[%clk 0:01:13]}  e5 {[%clk 0:01:25]} 35. Bd2 {[%clk 0:01:13]}  Kg8 {[%clk 0:01:00]} 36. Bc3 {[%clk 0:01:12]}  Re7 {[%clk 0:01:01]} 37. Re1 {[%clk 0:00:42]}  Rde8 {[%clk 0:00:58]} 38. g6 {[%clk 0:00:39]}  Nf6 {[%clk 0:00:57]} 39. Rg5 {[%clk 0:00:39]}  f4 {[%clk 0:00:52]} 40. Rgxe5 {[%clk 0:00:36]}  Rxe5 {[%clk 0:00:52]} 41. Rxe5 {[%clk 0:00:36]}  Rxe5 {[%clk 0:00:52]} 42. Bxe5 {[%clk 0:00:37]}  f3 {[%clk 0:00:52]} 43. Kd3 {[%clk 0:00:29]}  f2 {[%clk 0:00:29]} 44. Ke2 {[%clk 0:00:28]}  Nxh5 {[%clk 0:00:29]} 45. Kxf2 {[%clk 0:00:26]}  Nf6 {[%clk 0:00:30]} 46. Kf3 {[%clk 0:00:26]}  Kf8 {[%clk 0:00:21]} 47. Bxf6 {[%clk 0:00:22]}  gxf6 {[%clk 0:00:21]} 48. Kf4 {[%clk 0:00:22]}  a5 {[%clk 0:00:19]} 49. Kf5 {[%clk 0:00:22]}  Kg7 {[%clk 0:00:19]} 50. a3 {[%clk 0:00:18]} 1-0


[Site "https://www.chess.com"]

[Event "Titled Tuesday Blitz October 26 2021"]
[White "Costachi, Mihnea"]
[Black "Sadhwani, Raunak"]
[WhiteFideId "1217518"]
[BlackFideId "35093487"]
[WhiteElo "2482"]
[BlackElo "2517"]
[Result "1-0"]
[Round "07"]
[TimeControl "180+1"]
[Date "2021.10.26"]
[WhiteClock "0:00:07"]
[BlackClock "0:00:02"]

1. d4 {[%clk 0:03:00]}  Nf6 {[%clk 0:02:59]} 2. c4 {[%clk 0:03:01]}  g6 {[%clk 0:02:56]} 3. Nc3 {[%clk 0:03:00]}  Bg7 {[%clk 0:02:57]} 4. e4 {[%clk 0:03:01]}  d6 {[%clk 0:02:57]} 5. Be2 {[%clk 0:03:01]}  O-O {[%clk 0:02:57]} 6. Bg5 {[%clk 0:03:02]}  Nbd7 {[%clk 0:02:54]} 7. Qd2 {[%clk 0:02:59]}  c6 {[%clk 0:02:54]} 8. f3 {[%clk 0:02:57]}  e5 {[%clk 0:02:52]} 9. d5 {[%clk 0:02:57]}  Nc5 {[%clk 0:02:44]} 10. b4 {[%clk 0:02:48]}  Na6 {[%clk 0:02:38]} 11. a3 {[%clk 0:02:48]}  cxd5 {[%clk 0:02:31]} 12. cxd5 {[%clk 0:02:48]}  Bd7 {[%clk 0:02:31]} 13. Bxa6 {[%clk 0:02:45]}  bxa6 {[%clk 0:02:31]} 14. Nge2 {[%clk 0:02:46]}  h6 {[%clk 0:02:28]} 15. Bxh6 {[%clk 0:02:34]}  Nxe4 {[%clk 0:02:26]} 16. Nxe4 {[%clk 0:02:35]}  Qh4+ {[%clk 0:02:26]} 17. g3 {[%clk 0:02:36]}  Qxh6 {[%clk 0:02:27]} 18. Qxh6 {[%clk 0:02:35]}  Bxh6 {[%clk 0:02:28]} 19. Nxd6 {[%clk 0:02:33]}  Ba4 {[%clk 0:01:54]} 20. Nc3 {[%clk 0:02:24]}  Bc2 {[%clk 0:01:43]} 21. Ke2 {[%clk 0:02:06]}  a5 {[%clk 0:01:18]} 22. h4 {[%clk 0:01:41]}  f5 {[%clk 0:00:58]} 23. h5 {[%clk 0:01:40]}  g5 {[%clk 0:00:53]} 24. Rhc1 {[%clk 0:01:33]}  Bb3 {[%clk 0:00:53]} 25. bxa5 {[%clk 0:01:19]}  g4 {[%clk 0:00:50]} 26. Rcb1 {[%clk 0:01:18]}  gxf3+ {[%clk 0:00:50]} 27. Kxf3 {[%clk 0:01:19]}  e4+ {[%clk 0:00:51]} 28. Kg2 {[%clk 0:01:12]}  Bc2 {[%clk 0:00:51]} 29. Rb7 {[%clk 0:01:11]}  Rad8 {[%clk 0:00:39]} 30. Ndb5 {[%clk 0:01:03]}  Bg7 {[%clk 0:00:32]} 31. Rc1 {[%clk 0:00:59]}  Bd3 {[%clk 0:00:31]} 32. Nc7 {[%clk 0:00:56]}  Rd7 {[%clk 0:00:29]} 33. a6 {[%clk 0:00:49]}  Rff7 {[%clk 0:00:21]} 34. Rb8+ {[%clk 0:00:39]}  Kh7 {[%clk 0:00:22]} 35. Ne6 {[%clk 0:00:39]}  Bh6 {[%clk 0:00:22]} 36. Re1 {[%clk 0:00:32]}  e3 {[%clk 0:00:21]} 37. Kf3 {[%clk 0:00:28]}  Bxa6 {[%clk 0:00:19]} 38. Nf4 {[%clk 0:00:25]}  Bg7 {[%clk 0:00:17]} 39. Na4 {[%clk 0:00:21]}  Bd4 {[%clk 0:00:16]} 40. Rb4 {[%clk 0:00:21]}  Be5 {[%clk 0:00:11]} 41. Nc5 {[%clk 0:00:21]}  Rd6 {[%clk 0:00:11]} 42. Nxa6 {[%clk 0:00:18]}  Rxa6 {[%clk 0:00:12]} 43. Rxe3 {[%clk 0:00:19]}  Bd6 {[%clk 0:00:12]} 44. Rc4 {[%clk 0:00:18]}  Rxa3 {[%clk 0:00:12]} 45. Rxa3 {[%clk 0:00:17]}  Bxa3 {[%clk 0:00:13]} 46. Ne6 {[%clk 0:00:18]}  Kh6 {[%clk 0:00:12]} 47. Nf4 {[%clk 0:00:16]}  Bd6 {[%clk 0:00:10]} 48. Rc6 {[%clk 0:00:16]}  Rf6 {[%clk 0:00:11]} 49. Ra6 {[%clk 0:00:14]}  Be5 {[%clk 0:00:06]} 50. Rxa7 {[%clk 0:00:12]}  Rd6 {[%clk 0:00:07]} 51. Ra5 {[%clk 0:00:10]}  Kg5 {[%clk 0:00:05]} 52. Rb5 {[%clk 0:00:09]}  Ra6 {[%clk 0:00:03]} 53. Nd3 {[%clk 0:00:09]}  Bd6 {[%clk 0:00:03]} 54. Ke3 {[%clk 0:00:08]}  Bxg3 {[%clk 0:00:02]} 55. Nc5 {[%clk 0:00:07]}  Ra3+ {[%clk 0:00:02]} 56. Ke2 {[%clk 0:00:08]}  Kxh5 {[%clk 0:00:02]} 57. Ne6 {[%clk 0:00:09]}  Bd6 {[%clk 0:00:03]} 58. Rb6 {[%clk 0:00:08]}  Be5 {[%clk 0:00:02]} 59. d6 {[%clk 0:00:08]}  Ra7 {[%clk 0:00:02]} 60. Nc5 {[%clk 0:00:07]} 1-0


[Site "https://www.chess.com"]

[Event "Titled Tuesday Blitz October 26 2021"]
[White "Djordjevic, Vuk"]
[Black "Timofeev, Artyom"]
[WhiteFideId "902098"]
[BlackFideId "4140419"]
[WhiteElo "2463"]
[BlackElo "2591"]
[Result "1/2-1/2"]
[Round "07"]
[TimeControl "180+1"]
[Date "2021.10.26"]
[WhiteClock "0:00:04"]
[BlackClock "0:00:08"]

1. d4 {[%clk 0:03:00]}  Nf6 {[%clk 0:02:59]} 2. Bg5 {[%clk 0:03:01]}  e6 {[%clk 0:02:58]} 3. e4 {[%clk 0:03:00]}  h6 {[%clk 0:02:58]} 4. Bxf6 {[%clk 0:03:01]}  Qxf6 {[%clk 0:02:58]} 5. c3 {[%clk 0:03:01]}  d6 {[%clk 0:02:57]} 6. Bd3 {[%clk 0:03:02]}  Qd8 {[%clk 0:02:53]} 7. f4 {[%clk 0:02:58]}  c5 {[%clk 0:02:51]} 8. dxc5 {[%clk 0:02:49]}  d5 {[%clk 0:02:36]} 9. exd5 {[%clk 0:02:11]}  exd5 {[%clk 0:02:36]} 10. b4 {[%clk 0:02:07]}  a5 {[%clk 0:02:36]} 11. Nf3 {[%clk 0:02:03]}  Be7 {[%clk 0:02:32]} 12. Nbd2 {[%clk 0:01:55]}  O-O {[%clk 0:02:30]} 13. O-O {[%clk 0:01:51]}  b6 {[%clk 0:02:29]} 14. Nb3 {[%clk 0:01:43]}  a4 {[%clk 0:02:29]} 15. Nbd4 {[%clk 0:01:43]}  bxc5 {[%clk 0:02:30]} 16. bxc5 {[%clk 0:01:42]}  Bxc5 {[%clk 0:02:30]} 17. Bc2 {[%clk 0:01:33]}  Ba6 {[%clk 0:02:26]} 18. Re1 {[%clk 0:01:29]}  a3 {[%clk 0:02:26]} 19. Ne5 {[%clk 0:01:22]}  Nd7 {[%clk 0:02:22]} 20. Bb3 {[%clk 0:00:58]}  Nf6 {[%clk 0:02:13]} 21. Qf3 {[%clk 0:00:48]}  Bc4 {[%clk 0:02:04]} 22. Bxc4 {[%clk 0:00:38]}  dxc4 {[%clk 0:02:04]} 23. Rad1 {[%clk 0:00:36]}  Qd5 {[%clk 0:01:59]} 24. Qg3 {[%clk 0:00:29]}  Ne4 {[%clk 0:01:51]} 25. Qe3 {[%clk 0:00:21]}  f5 {[%clk 0:01:48]} 26. Kh1 {[%clk 0:00:21]}  Rad8 {[%clk 0:01:45]} 27. h3 {[%clk 0:00:18]}  Kh7 {[%clk 0:01:34]} 28. Kh2 {[%clk 0:00:17]}  Nxc3 {[%clk 0:01:20]} 29. Qxc3 {[%clk 0:00:17]}  Bxd4 {[%clk 0:01:21]} 30. Qxc4 {[%clk 0:00:13]}  Qxc4 {[%clk 0:01:20]} 31. Nxc4 {[%clk 0:00:13]}  Bb2 {[%clk 0:01:06]} 32. Rxd8 {[%clk 0:00:10]}  Rxd8 {[%clk 0:01:07]} 33. Nxb2 {[%clk 0:00:10]}  axb2 {[%clk 0:01:06]} 34. Rb1 {[%clk 0:00:10]}  Rb8 {[%clk 0:01:01]} 35. a4 {[%clk 0:00:10]}  Rb4 {[%clk 0:01:01]} 36. a5 {[%clk 0:00:10]}  Rxf4 {[%clk 0:00:52]} 37. a6 {[%clk 0:00:10]}  Ra4 {[%clk 0:00:50]} 38. Rxb2 {[%clk 0:00:09]}  Rxa6 {[%clk 0:00:51]} 39. Rb4 {[%clk 0:00:08]}  Ra2 {[%clk 0:00:47]} 40. Kg3 {[%clk 0:00:07]}  g5 {[%clk 0:00:46]} 41. Rb6 {[%clk 0:00:06]}  Kg7 {[%clk 0:00:43]} 42. Kf3 {[%clk 0:00:06]}  Ra3+ {[%clk 0:00:42]} 43. Kf2 {[%clk 0:00:06]}  Rc3 {[%clk 0:00:39]} 44. Ra6 {[%clk 0:00:06]}  Rd3 {[%clk 0:00:38]} 45. Rb6 {[%clk 0:00:06]}  h5 {[%clk 0:00:38]} 46. Rc6 {[%clk 0:00:05]}  h4 {[%clk 0:00:38]} 47. Rb6 {[%clk 0:00:05]}  Kf7 {[%clk 0:00:35]} 48. Ra6 {[%clk 0:00:05]}  Rd5 {[%clk 0:00:33]} 49. Kf3 {[%clk 0:00:05]}  Re5 {[%clk 0:00:32]} 50. Rb6 {[%clk 0:00:05]}  Re6 {[%clk 0:00:32]} 51. Rb5 {[%clk 0:00:05]}  Kf6 {[%clk 0:00:32]} 52. Ra5 {[%clk 0:00:05]}  Rb6 {[%clk 0:00:32]} 53. Ra3 {[%clk 0:00:05]}  Rb5 {[%clk 0:00:30]} 54. Re3 {[%clk 0:00:05]}  Rb1 {[%clk 0:00:26]} 55. Rc3 {[%clk 0:00:05]}  Rf1+ {[%clk 0:00:25]} 56. Ke2 {[%clk 0:00:05]}  Rf4 {[%clk 0:00:25]} 57. Rc6+ {[%clk 0:00:05]}  Ke5 {[%clk 0:00:25]} 58. Rc5+ {[%clk 0:00:05]}  Kd4 {[%clk 0:00:25]} 59. Ra5 {[%clk 0:00:04]}  Re4+ {[%clk 0:00:21]} 60. Kf3 {[%clk 0:00:04]}  Re3+ {[%clk 0:00:21]} 61. Kf2 {[%clk 0:00:04]}  Re5 {[%clk 0:00:22]} 62. Ra4+ {[%clk 0:00:03]}  Kd5 {[%clk 0:00:21]} 63. Ra5+ {[%clk 0:00:03]}  Ke6 {[%clk 0:00:21]} 64. Ra4 {[%clk 0:00:04]}  Re4 {[%clk 0:00:19]} 65. Ra5 {[%clk 0:00:04]}  Kf6 {[%clk 0:00:18]} 66. Kf3 {[%clk 0:00:04]}  Rb4 {[%clk 0:00:18]} 67. Ra6+ {[%clk 0:00:05]}  Ke5 {[%clk 0:00:18]} 68. Ra5+ {[%clk 0:00:05]}  Ke6 {[%clk 0:00:18]} 69. Ra6+ {[%clk 0:00:06]}  Kf7 {[%clk 0:00:18]} 70. Ra7+ {[%clk 0:00:06]}  Kg6 {[%clk 0:00:18]} 71. Ra5 {[%clk 0:00:07]}  Rb3+ {[%clk 0:00:17]} 72. Kf2 {[%clk 0:00:07]}  Rc3 {[%clk 0:00:17]} 73. Rb5 {[%clk 0:00:07]}  g4 {[%clk 0:00:16]} 74. hxg4 {[%clk 0:00:07]}  fxg4 {[%clk 0:00:16]} 75. Rb4 {[%clk 0:00:06]}  g3+ {[%clk 0:00:14]} 76. Ke2 {[%clk 0:00:05]}  Kg5 {[%clk 0:00:09]} 77. Rb5+ {[%clk 0:00:05]}  Kg4 {[%clk 0:00:07]} 78. Rb4+ {[%clk 0:00:05]}  Kg5 {[%clk 0:00:08]} 79. Rb5+ {[%clk 0:00:05]}  Kf6 {[%clk 0:00:08]} 80. Rb4 {[%clk 0:00:03]}  Rc2+ {[%clk 0:00:08]} 81. Kf3 {[%clk 0:00:03]}  Rf2+ {[%clk 0:00:08]} 82. Kg4 {[%clk 0:00:04]}  Rxg2 {[%clk 0:00:09]} 83. Kxh4 {[%clk 0:00:04]}  Kf5 {[%clk 0:00:09]} 84. Rc4 {[%clk 0:00:04]}  Rg1 {[%clk 0:00:09]} 85. Kh3 {[%clk 0:00:04]}  Kg5 {[%clk 0:00:08]} 86. Rg4+ {[%clk 0:00:03]}  Kf5 {[%clk 0:00:08]} 87. Rxg3 {[%clk 0:00:04]}  Rxg3+ {[%clk 0:00:08]} 88. Kxg3 {[%clk 0:00:04]} 1/2-1/2


[Site "https://www.chess.com"]

[Event "Titled Tuesday Blitz October 26 2021"]
[White "Gabrielian, Artur"]
[Black "Horobetz, Graham"]
[WhiteFideId "4131002"]
[BlackFideId "2047322"]
[WhiteElo "2489"]
[BlackElo "2570"]
[Result "1-0"]
[Round "07"]
[TimeControl "180+1"]
[Date "2021.10.26"]
[WhiteClock "0:00:11"]
[BlackClock "0:00:02"]

1. e4 {[%clk 0:03:00]}  c5 {[%clk 0:02:59]} 2. Nc3 {[%clk 0:03:00]}  g6 {[%clk 0:02:55]} 3. d4 {[%clk 0:02:59]}  cxd4 {[%clk 0:02:55]} 4. Qxd4 {[%clk 0:02:59]}  Nf6 {[%clk 0:02:55]} 5. Be3 {[%clk 0:02:59]}  Nc6 {[%clk 0:02:54]} 6. Qd2 {[%clk 0:02:59]}  d6 {[%clk 0:02:41]} 7. f3 {[%clk 0:02:59]}  Bg7 {[%clk 0:02:40]} 8. Nge2 {[%clk 0:02:55]}  Bd7 {[%clk 0:02:37]} 9. Nf4 {[%clk 0:02:51]}  Rc8 {[%clk 0:02:34]} 10. h4 {[%clk 0:02:50]}  h5 {[%clk 0:02:32]} 11. Nfd5 {[%clk 0:02:47]}  e6 {[%clk 0:02:22]} 12. Nxf6+ {[%clk 0:02:46]}  Bxf6 {[%clk 0:02:23]} 13. O-O-O {[%clk 0:02:40]}  Nb4 {[%clk 0:02:10]} 14. Bd4 {[%clk 0:02:04]}  O-O {[%clk 0:02:00]} 15. Bxf6 {[%clk 0:01:58]}  Qxf6 {[%clk 0:02:01]} 16. Kb1 {[%clk 0:01:46]}  Rfd8 {[%clk 0:01:39]} 17. a3 {[%clk 0:01:42]}  Nc6 {[%clk 0:01:39]} 18. Bb5 {[%clk 0:01:39]}  Ne5 {[%clk 0:01:37]} 19. Be2 {[%clk 0:01:35]}  Be8 {[%clk 0:01:31]} 20. Qe3 {[%clk 0:01:23]}  a6 {[%clk 0:01:25]} 21. g4 {[%clk 0:01:21]}  hxg4 {[%clk 0:00:27]} 22. fxg4 {[%clk 0:01:20]}  Nc4 {[%clk 0:00:27]} 23. Bxc4 {[%clk 0:01:19]}  Rxc4 {[%clk 0:00:28]} 24. h5 {[%clk 0:00:56]}  Rdc8 {[%clk 0:00:24]} 25. hxg6 {[%clk 0:00:52]}  Qxg6 {[%clk 0:00:24]} 26. Rh6 {[%clk 0:00:44]}  Qg7 {[%clk 0:00:20]} 27. Rdh1 {[%clk 0:00:43]}  Kf8 {[%clk 0:00:17]} 28. Qd2 {[%clk 0:00:27]}  Ke7 {[%clk 0:00:13]} 29. e5 {[%clk 0:00:24]}  Qxe5 {[%clk 0:00:10]} 30. Re1 {[%clk 0:00:22]}  Qd4 {[%clk 0:00:11]} 31. Nd5+ {[%clk 0:00:17]}  Kd7 {[%clk 0:00:07]} 32. Qxd4 {[%clk 0:00:16]}  Rxd4 {[%clk 0:00:08]} 33. Nb6+ {[%clk 0:00:16]}  Kc7 {[%clk 0:00:09]} 34. Nxc8 {[%clk 0:00:17]}  Kxc8 {[%clk 0:00:09]} 35. Rh8 {[%clk 0:00:17]}  Kd7 {[%clk 0:00:09]} 36. g5 {[%clk 0:00:17]}  Rg4 {[%clk 0:00:10]} 37. Rg8 {[%clk 0:00:18]}  Ke7 {[%clk 0:00:09]} 38. c3 {[%clk 0:00:16]}  Rg2 {[%clk 0:00:09]} 39. Kc1 {[%clk 0:00:16]}  e5 {[%clk 0:00:09]} 40. Rh1 {[%clk 0:00:13]}  Bd7 {[%clk 0:00:10]} 41. Rhh8 {[%clk 0:00:12]}  Bc6 {[%clk 0:00:10]} 42. Rg7 {[%clk 0:00:12]}  Ke6 {[%clk 0:00:10]} 43. Rh6+ {[%clk 0:00:11]}  Ke7 {[%clk 0:00:09]} 44. Rf6 {[%clk 0:00:11]}  Bd5 {[%clk 0:00:08]} 45. b4 {[%clk 0:00:11]}  b5 {[%clk 0:00:08]} 46. Kd1 {[%clk 0:00:10]}  Rxg5 {[%clk 0:00:08]} 47. Rfxf7+ {[%clk 0:00:10]}  Bxf7 {[%clk 0:00:08]} 48. Rxg5 {[%clk 0:00:10]}  Kf6 {[%clk 0:00:07]} 49. Rg1 {[%clk 0:00:11]}  d5 {[%clk 0:00:08]} 50. Kd2 {[%clk 0:00:11]}  e4 {[%clk 0:00:08]} 51. Ke3 {[%clk 0:00:12]}  Ke5 {[%clk 0:00:08]} 52. Rg5+ {[%clk 0:00:12]}  Kd6 {[%clk 0:00:07]} 53. Kd4 {[%clk 0:00:12]}  Be6 {[%clk 0:00:07]} 54. Re5 {[%clk 0:00:12]}  Bf7 {[%clk 0:00:07]} 55. Rg5 {[%clk 0:00:11]}  Be6 {[%clk 0:00:08]} 56. Rg6 {[%clk 0:00:12]}  Ke7 {[%clk 0:00:06]} 57. Ke5 {[%clk 0:00:12]}  Bf7 {[%clk 0:00:06]} 58. Rg3 {[%clk 0:00:10]}  Be6 {[%clk 0:00:05]} 59. Rg7+ {[%clk 0:00:11]}  Bf7 {[%clk 0:00:06]} 60. Rh7 {[%clk 0:00:11]}  Kf8 {[%clk 0:00:05]} 61. Kf6 {[%clk 0:00:11]}  Bg8 {[%clk 0:00:04]} 62. Re7 {[%clk 0:00:11]}  d4 {[%clk 0:00:02]} 63. cxd4 {[%clk 0:00:11]}  Bd5 {[%clk 0:00:03]} 64. Re5 {[%clk 0:00:11]}  Bc4 {[%clk 0:00:02]} 65. d5 {[%clk 0:00:11]}  e3 {[%clk 0:00:02]} 66. d6 {[%clk 0:00:11]} 1-0


[Site "https://www.chess.com"]

[Event "Titled Tuesday Blitz October 26 2021"]
[White "Grischuk, Alexander"]
[Black "Demidov, Mikhail"]
[WhiteFideId "4126025"]
[BlackFideId "4197143"]
[WhiteElo "2757"]
[BlackElo "2527"]
[Result "1-0"]
[Round "07"]
[TimeControl "180+1"]
[Date "2021.10.26"]
[WhiteClock "0:00:07"]
[BlackClock "0:01:05"]

1. e4 {[%clk 0:03:00]}  e6 {[%clk 0:03:00]} 2. d4 {[%clk 0:03:00]}  d5 {[%clk 0:03:01]} 3. e5 {[%clk 0:03:00]}  c5 {[%clk 0:03:00]} 4. c3 {[%clk 0:03:01]}  Ne7 {[%clk 0:03:01]} 5. Nf3 {[%clk 0:03:00]}  Nec6 {[%clk 0:03:01]} 6. Bd3 {[%clk 0:02:58]}  b6 {[%clk 0:03:01]} 7. h4 {[%clk 0:02:56]}  a5 {[%clk 0:03:00]} 8. h5 {[%clk 0:02:56]}  h6 {[%clk 0:03:00]} 9. Kf1 {[%clk 0:02:46]}  Ba6 {[%clk 0:02:59]} 10. Kg1 {[%clk 0:02:44]}  Bxd3 {[%clk 0:02:59]} 11. Qxd3 {[%clk 0:02:45]}  Qc8 {[%clk 0:02:59]} 12. Qd1 {[%clk 0:02:35]}  Qa6 {[%clk 0:02:57]} 13. a4 {[%clk 0:02:28]}  Nd7 {[%clk 0:02:54]} 14. Rh3 {[%clk 0:02:24]}  O-O-O {[%clk 0:02:50]} 15. Na3 {[%clk 0:02:15]}  cxd4 {[%clk 0:02:49]} 16. cxd4 {[%clk 0:02:16]}  Bxa3 {[%clk 0:02:49]} 17. Rxa3 {[%clk 0:02:17]}  Kb7 {[%clk 0:02:49]} 18. Rg3 {[%clk 0:02:16]}  Rhg8 {[%clk 0:02:47]} 19. Rc3 {[%clk 0:02:15]}  Nb4 {[%clk 0:02:44]} 20. Be3 {[%clk 0:02:02]}  Nb8 {[%clk 0:02:40]} 21. Nd2 {[%clk 0:01:59]}  N8c6 {[%clk 0:02:33]} 22. Qf3 {[%clk 0:01:58]}  Rd7 {[%clk 0:02:25]} 23. Rg4 {[%clk 0:01:55]}  Qa8 {[%clk 0:02:15]} 24. Qg3 {[%clk 0:01:52]}  Ne7 {[%clk 0:02:10]} 25. Rxg7 {[%clk 0:01:32]}  Rxg7 {[%clk 0:01:59]} 26. Qxg7 {[%clk 0:01:32]}  Nf5 {[%clk 0:02:00]} 27. Qg4 {[%clk 0:01:23]}  Na2 {[%clk 0:01:55]} 28. Ra3 {[%clk 0:01:22]}  Nb4 {[%clk 0:01:55]} 29. Rc3 {[%clk 0:01:22]}  Na2 {[%clk 0:01:55]} 30. Ra3 {[%clk 0:01:18]}  Nb4 {[%clk 0:01:55]} 31. Nf1 {[%clk 0:01:09]}  Rc7 {[%clk 0:01:51]} 32. Rc3 {[%clk 0:01:08]}  Qe8 {[%clk 0:01:50]} 33. Rxc7+ {[%clk 0:01:03]}  Kxc7 {[%clk 0:01:51]} 34. b3 {[%clk 0:01:03]}  b5 {[%clk 0:01:47]} 35. Qd1 {[%clk 0:00:37]}  Kb6 {[%clk 0:01:43]} 36. Bf4 {[%clk 0:00:31]}  Nc6 {[%clk 0:01:38]} 37. g4 {[%clk 0:00:23]}  Qg8 {[%clk 0:01:36]} 38. Kh2 {[%clk 0:00:21]}  Ncxd4 {[%clk 0:01:23]} 39. gxf5 {[%clk 0:00:20]}  Nxf5 {[%clk 0:01:22]} 40. Ng3 {[%clk 0:00:19]}  bxa4 {[%clk 0:01:10]} 41. Nxf5 {[%clk 0:00:15]}  exf5 {[%clk 0:01:10]} 42. bxa4 {[%clk 0:00:14]}  Qd8 {[%clk 0:01:10]} 43. Qd4+ {[%clk 0:00:11]}  Ka6 {[%clk 0:01:10]} 44. Kh3 {[%clk 0:00:09]}  Qd7 {[%clk 0:01:09]} 45. Qd3+ {[%clk 0:00:09]}  Kb6 {[%clk 0:01:03]} 46. Qb5+ {[%clk 0:00:07]}  Qxb5 {[%clk 0:01:03]} 47. axb5 {[%clk 0:00:07]}  a4 {[%clk 0:01:04]} 48. Bxh6 {[%clk 0:00:08]}  a3 {[%clk 0:01:04]} 49. Bc1 {[%clk 0:00:08]}  a2 {[%clk 0:01:04]} 50. Bb2 {[%clk 0:00:08]}  Kc5 {[%clk 0:01:02]} 51. h6 {[%clk 0:00:06]}  d4 {[%clk 0:01:03]} 52. h7 {[%clk 0:00:07]}  d3 {[%clk 0:01:04]} 53. h8=Q {[%clk 0:00:07]}  d2 {[%clk 0:01:05]} 54. Qd8 {[%clk 0:00:07]} 1-0


[Site "https://www.chess.com"]

[Event "Titled Tuesday Blitz October 26 2021"]
[White "Kamsky, Gata"]
[Black "Sonis, Francesco"]
[WhiteFideId "2000024"]
[BlackFideId "895733"]
[WhiteElo "2603"]
[BlackElo "2373"]
[Result "1/2-1/2"]
[Round "07"]
[TimeControl "180+1"]
[Date "2021.10.26"]
[WhiteClock "0:00:19"]
[BlackClock "0:00:17"]

1. g3 {[%clk 0:03:00]}  d5 {[%clk 0:02:45]} 2. Bg2 {[%clk 0:03:00]}  c6 {[%clk 0:02:42]} 3. b3 {[%clk 0:02:48]}  Bf5 {[%clk 0:02:39]} 4. Bb2 {[%clk 0:02:48]}  e6 {[%clk 0:02:37]} 5. d3 {[%clk 0:02:48]}  Nf6 {[%clk 0:02:34]} 6. e3 {[%clk 0:02:47]}  Nbd7 {[%clk 0:02:32]} 7. Nd2 {[%clk 0:02:47]}  h6 {[%clk 0:02:31]} 8. h3 {[%clk 0:02:45]}  Bc5 {[%clk 0:02:30]} 9. Qe2 {[%clk 0:02:44]}  Qe7 {[%clk 0:02:27]} 10. a3 {[%clk 0:02:44]}  a5 {[%clk 0:02:25]} 11. f4 {[%clk 0:02:42]}  Bh7 {[%clk 0:02:23]} 12. Ngf3 {[%clk 0:02:42]}  Bd6 {[%clk 0:02:22]} 13. Ne5 {[%clk 0:02:35]}  Bc7 {[%clk 0:02:14]} 14. Nxd7 {[%clk 0:02:18]}  Nxd7 {[%clk 0:02:00]} 15. O-O {[%clk 0:02:17]}  e5 {[%clk 0:01:58]} 16. f5 {[%clk 0:02:16]}  f6 {[%clk 0:01:47]} 17. e4 {[%clk 0:02:07]}  d4 {[%clk 0:01:46]} 18. Bf3 {[%clk 0:02:05]}  Bg8 {[%clk 0:01:43]} 19. Bh5+ {[%clk 0:02:05]}  Bf7 {[%clk 0:01:40]} 20. a4 {[%clk 0:02:03]}  O-O-O {[%clk 0:01:36]} 21. Ba3 {[%clk 0:01:59]}  Qe8 {[%clk 0:01:33]} 22. Bxf7 {[%clk 0:01:58]}  Qxf7 {[%clk 0:01:34]} 23. Nc4 {[%clk 0:01:57]}  c5 {[%clk 0:01:33]} 24. Bc1 {[%clk 0:01:54]}  b6 {[%clk 0:01:30]} 25. Bd2 {[%clk 0:01:53]}  Nb8 {[%clk 0:01:30]} 26. Rf2 {[%clk 0:01:44]}  Nc6 {[%clk 0:01:30]} 27. Raf1 {[%clk 0:01:43]}  Kb7 {[%clk 0:01:30]} 28. g4 {[%clk 0:01:40]}  Rh7 {[%clk 0:01:29]} 29. Rg2 {[%clk 0:01:40]}  Rhh8 {[%clk 0:01:29]} 30. h4 {[%clk 0:01:40]}  Rh7 {[%clk 0:01:29]} 31. Kf2 {[%clk 0:01:34]}  Rdh8 {[%clk 0:01:29]} 32. Rfg1 {[%clk 0:01:34]}  Qe8 {[%clk 0:01:28]} 33. Ke1 {[%clk 0:01:33]}  Qd7 {[%clk 0:01:27]} 34. g5 {[%clk 0:01:32]}  hxg5 {[%clk 0:01:26]} 35. hxg5 {[%clk 0:01:32]}  Bd8 {[%clk 0:01:25]} 36. g6 {[%clk 0:01:32]}  Rh3 {[%clk 0:01:21]} 37. Qf2 {[%clk 0:01:24]}  Be7 {[%clk 0:01:15]} 38. Rg3 {[%clk 0:01:16]}  Rh2 {[%clk 0:01:13]} 39. R3g2 {[%clk 0:01:14]}  R2h3 {[%clk 0:01:13]} 40. Kd1 {[%clk 0:01:09]}  Qd8 {[%clk 0:01:11]} 41. Qe1 {[%clk 0:01:07]}  R8h5 {[%clk 0:01:07]} 42. Rg3 {[%clk 0:01:07]}  Rh2 {[%clk 0:01:07]} 43. R3g2 {[%clk 0:01:06]}  R2h3 {[%clk 0:01:07]} 44. Kc1 {[%clk 0:00:56]}  Ka6 {[%clk 0:01:06]} 45. Na3 {[%clk 0:00:55]}  Qh8 {[%clk 0:00:57]} 46. Kb1 {[%clk 0:00:54]}  R5h4 {[%clk 0:00:54]} 47. Qe2 {[%clk 0:00:54]}  Rh5 {[%clk 0:00:48]} 48. Qd1 {[%clk 0:00:50]}  R5h4 {[%clk 0:00:47]} 49. Be1 {[%clk 0:00:48]}  Rh5 {[%clk 0:00:46]} 50. Bg3 {[%clk 0:00:46]}  Qh6 {[%clk 0:00:37]} 51. Be1 {[%clk 0:00:38]}  Qh8 {[%clk 0:00:30]} 52. Bd2 {[%clk 0:00:37]}  Rh1 {[%clk 0:00:29]} 53. Rxh1 {[%clk 0:00:36]}  Rxh1 {[%clk 0:00:30]} 54. Rg1 {[%clk 0:00:36]}  Rh2 {[%clk 0:00:30]} 55. Be1 {[%clk 0:00:33]}  Qh6 {[%clk 0:00:26]} 56. Bg3 {[%clk 0:00:31]}  Rh3 {[%clk 0:00:26]} 57. Qe2 {[%clk 0:00:25]}  Qe3 {[%clk 0:00:19]} 58. Qg2 {[%clk 0:00:22]}  Qh6 {[%clk 0:00:19]} 59. Be1 {[%clk 0:00:20]}  Rh5 {[%clk 0:00:18]} 60. Bd2 {[%clk 0:00:19]}  Qh8 {[%clk 0:00:18]} 61. Qe2 {[%clk 0:00:19]}  Rh2 {[%clk 0:00:18]} 62. Qd1 {[%clk 0:00:19]}  Qh3 {[%clk 0:00:17]} 1/2-1/2


[Site "https://www.chess.com"]